Cogmind - Beta 13 @@@ ROGUE MODE // 2024.04.11 @ 11:46:07 Player: Geo Result: Destroyed by S-27 Virus with Autogun Performance ------------- Evolutions (4) 2000 Regions Visited (12) 2400 Robots Destroyed (117) 585 Value Destroyed (5021) 5021 Prototype IDs (27) 540 Alien Tech Used (0) 0 Bonus (5146) 5146 TOTAL SCORE: 15692 Bonus ------- High Alert Combat Kills 1356 Follower Combat Kills 1186 Entered Garrisons 800 Used RIF Installer 2000 Aligned with FarCom 300 Friendly Fire -496 Cogmind --------- Core Integrity 0/850 Matter 265/300 Energy 94/100 System Corruption 1% Temperature Cool (0) Movement Core (50) Location -6/Garrison Parts ------- > --- POWER (1) -------- (None) > --- PROPULSION (6) --- (None) > --- UTILITY (6) ------ (None) > --- WEAPON (2) ------- Axe > --- INVENTORY (5) ---- XL Autogun Array Peak State ------------ > --- POWER ------------ Neutrino Core > --- PROPULSION ------- Improved Heavy Treads Improved Heavy Treads Improved Heavy Treads > --- UTILITY ---------- Improved Heat Sink Improved Heat Sink Cargo Storage Unit Advanced Targeting Computer Relay Coupler [Brawler] > --- WEAPON ----------- Quantum Rifle Quantum Rifle > --- INVENTORY -------- Light Nuclear Core Light Nuclear Core Light Nuclear Core Improved Heavy Treads Experimental Sensor Array Core Analyzer Advanced Phase Shifter Relay Coupler [NC] Relay Coupler [Duelist] Relay Coupler [Sentry] Relay Coupler [Sentry] Relay Coupler [Specialist] Trap Reconfigurator Recalibrator Chronowheel XL Autogun Array Remote Datajack Remote Datajack Improved Remote Datajack Axe [Rating: 92] Favorites ----------- Power Ion Engine Engine Ion Engine Power Core Light Nuclear Core Propulsion Light Treads Treads Light Treads Leg Aluminum Leg Wheel Wheel Utility High-capacity Storage Unit Device Improved Heat Sink Storage High-capacity Storage Unit Processor Improved Targeting Computer Hackware Relay Coupler [Sentry] Protection Improved Light Armor Plating Weapon Light Assault Rifle Energy Gun Cooled Pulse Rifle Energy Cannon Plasma Cannon Ballistic Gun Light Assault Rifle Launcher Grenade Launcher Special Weapon Remote Datajack Impact Weapon Heavy Mace Slashing Weapon Axe Build | -11 -10 -10 -10 -9 -8 -8 -7 -7 -7 -7 -6 -6 ------- Run | Yrd Mat Min Exi Min Mat Gar Fac Gar Fac Gar Fac Gar Slots Evolved 8 | . . . . . 4 . 2 . . . 2 . Power . | . . . . . . . . . . . . . Propulsion 4 | . . . . . 2 . 1 . . . 1 . Utility 4 | . . . . . 2 . 1 . . . 1 . Weapon . | . . . . . . . . . . . . . Parts Attached 150 | . 14 6 . . 19 6 30 31 1 30 11 2 Power 12 | . 2 . . . . . 3 3 . 3 1 . Engine 7 | . 2 . . . . . 2 1 . 1 1 . Core 5 | . . . . . . . 1 2 . 2 . . Reactor . | . . . . . . . . . . . . . Propulsion 30 | . 3 . . . 5 2 5 4 . 8 3 . Treads 23 | . 3 . . . 2 1 4 4 . 6 3 . Leg 2 | . . . . . . . . . . 2 . . Wheel 5 | . . . . . 3 1 1 . . . . . Hover . | . . . . . . . . . . . . . Flight . | . . . . . . . . . . . . . Utility 42 | . 2 1 . . 4 2 13 8 1 7 4 . Device 14 | . . . . . 2 . 3 2 1 5 1 . Storage 4 | . 1 1 . . . . 1 . . 1 . . Processor 6 | . 1 . . . . . 3 . . 1 1 . Hackware 8 | . . . . . . 1 2 3 . . 2 . Protection 10 | . . . . . 2 1 4 3 . . . . Artifact . | . . . . . . . . . . . . . Weapon 66 | . 7 5 . . 10 2 9 16 . 12 3 2 Energy Gun 10 | . . . . . . . 3 1 . 5 . 1 Energy Cannon 3 | . . . . . . . 1 . . 2 . . Ballistic Gun 31 | . 5 2 . . 6 2 3 11 . 2 . . Ballistic Cannon . | . . . . . . . . . . . . . Launcher 10 | . 2 3 . . 4 . 1 . . . . . Special Weapon 5 | . . . . . . . 1 3 . . 1 . Impact Weapon 3 | . . . . . . . . 1 . 2 . . Slashing Weapon 4 | . . . . . . . . . . 1 2 1 Piercing Weapon . | . . . . . . . . . . . . . Special Melee Weapon . | . . . . . . . . . . . . . Unidentified Prototypes 4 | . . . . . . . 3 . . 1 . . Parts Lost 38 | . 1 . . . 4 . 9 6 . 11 7 . Power 3 | . 1 . . . . . . 1 . 1 . . Propulsion 19 | . . . . . 2 . 5 2 . 6 4 . Utility 10 | . . . . . 1 . 2 3 . 2 2 . Weapon 6 | . . . . . 1 . 2 . . 2 1 . Highest Loss Streak 3 | . 1 . . . 2 . 2 2 . 3 3 . To Critical Strikes 2 | . . . . . 1 . . . . . 1 . Average Slot Usage (%) 88 | . 98 100 100 100 80 98 94 68 92 74 63 6 Engine 8 | . 13 14 14 14 9 9 3 1 7 5 3 . Core 1 | . . . . . . . 2 3 . 1 1 . Treads 23 | . 24 28 28 28 19 15 30 9 30 20 17 . Wheel 2 | . . . . . 6 20 3 4 . . . . Device 3 | . . . . . 4 7 1 5 7 10 7 . Storage 9 | . 14 14 14 14 9 9 7 7 7 7 5 . Processor 10 | . 13 14 14 14 3 . 11 7 7 9 7 . Hackware 1 | . . . . . . . 1 7 7 1 6 . Protection 4 | . . . . . 9 18 13 4 7 . . . Energy Gun 1 | . 3 . . . . . 2 2 . 3 4 2 Ballistic Gun 14 | . 24 23 14 14 17 18 11 10 15 4 . . Launcher 2 | . . 4 14 14 . . . . . . . . Naked Turns 8 | . . . . . . . . . . . 8 . Heaviest Build 168 | 10 17 49 49 49 54 58 70 66 66 168 168 3 Greatest Support 225 | 20 40 40 40 40 60 36 108 80 80 170 225 3 Greatest Overweight (x) 17 | . . 1 1 1 17 2 3 15 . 2 2 . Average Overweight (x) . | . . . 1 1 . 1 . 1 . . . . Largest Inventory Capacity 30 | . 10 20 20 20 20 20 20 20 20 30 30 5 Average Capacity 19 | . 8 15 20 20 20 20 20 20 20 28 27 5 Most Carried 30 | . 10 14 20 20 20 20 20 20 20 30 25 5 Average Carried 17 | . 7 11 16 20 18 19 19 19 19 26 20 4 Final Capacity 30 | 8 10 20 20 20 20 20 20 20 20 30 5 5 Final Carried 27 | 6 10 14 20 20 20 20 19 20 20 27 4 4 Class Distribution -------------------- 44% | Mutant 29% | Scavenger-Mutant 11% | Bothacker-Mutant 11% | Commander-Mutant Dominant Class ---------------- Mutant | -10/Materials Mutant | -10/Mines Mutant | -10/Exiles Mutant | -9/Mines Mutant | -8/Materials Commander-Mutant | -8/Garrison Scavenger-Mutant | -7/Factory Bothacker-Mutant | -7/Garrison Scavenger-Mutant | -7/Factory Scavenger-Mutant | -7/Garrison Bothacker-Mutant | -6/Factory Mutant | -6/Garrison Resources | -11 -10 -10 -10 -9 -8 -8 -7 -7 -7 -7 -6 -6 ----------- Run | Yrd Mat Min Exi Min Mat Gar Fac Gar Fac Gar Fac Gar Matter Collected 3417 | 200 212 102 . . 301 57 750 543 . 1150 102 . Remotely . | . . . . . . . . . . . . . Salvage Created 4924 | . 409 33 . . 433 58 1100 446 . 1895 522 28 Parts 244 | . 36 6 . . 13 5 62 32 . 69 18 3 Haulers Intercepted 5 | . 2 . . . . . 3 . . . . . Recyclers Shooed 7 | . 1 . . . . . 4 . . . 2 . Parts Field Recycled . | . . . . . . . . . . . . . Retrieved Matter . | . . . . . . . . . . . . . Parts Self-Destructed . | . . . . . . . . . . . . . Prevented . | . . . . . . . . . . . . . Kills | -11 -10 -10 -10 -9 -8 -8 -7 -7 -7 -7 -6 -6 ------- Run | Yrd Mat Min Exi Min Mat Gar Fac Gar Fac Gar Fac Gar Combat Hostiles Destroyed 90 | . 12 6 . . 7 . 15 8 . 29 12 1 Melee 6 | . . . . . . . . . . . 5 1 Guns 51 | . 5 . . . 3 . 12 8 . 16 7 . Cannons 12 | . . . . . . . 2 . . 10 . . AOE 20 | . 7 6 . . 4 . 1 . . 2 . . Classes Destroyed 17 | . 6 1 . . 5 . 5 . . . . . Worker 6 | . . . . . 2 . 4 . . . . . Builder 4 | . 1 . . . . . 3 . . . . . Hauler 5 | . 2 . . . . . 3 . . . . . Recycler 4 | . . . . . 1 . 2 . . . 1 . Mechanic 1 | . . . . . . . 1 . . . . . Operator 3 | . 3 . . . . . . . . . . . Watcher 5 | . 2 . . . 2 . 1 . . . . . Swarmer 35 | . 6 3 . . . . . 7 . 11 7 1 Grunt 36 | . 6 . . . 4 . 7 . . 14 5 . Brawler 4 | . . . . . 1 . 2 . . 1 . . Duelist 1 | . . . . . 1 . . . . . . . Sentry 3 | . . . . . 1 . . 2 . . . . Demolisher 1 | . . . . . . . 1 . . . . . Specialist 2 | . . . . . . . 2 . . . . . Hunter 2 | . . . . . . . 2 . . . . . Programmer 5 | . . . . . . . 1 1 . 3 . . Assembled 3 | . . 3 . . . . . . . . . . Best Kill Streak 10 | . 5 3 . . 4 . 4 4 . 4 10 1 Combat Bots Only 9 | . 4 3 . . 3 . 3 4 . 4 9 1 Max Kills in Single Turn 3 | . 3 3 . . 2 . 2 1 . 2 2 1 Gunslinging 1 | . . . . . . . . . . . 1 . Exploded 3 | . 2 3 . . 2 . 1 . . 2 . . Melee 1 | . . . . . . . . . . . 1 1 Uniques/NPCs Destroyed . | . . . . . . . . . . . . . Combat | -11 -10 -10 -10 -9 -8 -8 -7 -7 -7 -7 -6 -6 -------- Run | Yrd Mat Min Exi Min Mat Gar Fac Gar Fac Gar Fac Gar Hostile Shots Fired 833 | . 33 3 . 8 30 . 155 122 . 233 223 26 Missed 247 | . 11 1 . 1 5 . 56 38 . 59 71 5 Damage Taken 9444 | . 270 24 . 59 627 . 1852 1014 . 2772 2503 323 Core 1601 | . 35 8 . . 146 . 175 203 . 181 558 295 Absorbed by Shields . | . . . . . . . . . . . . . Core Remaining (%) 68 | 100 . . . 82 . 73 . . . 20 . . Volleys Fired 381 | . 47 5 . . 33 9 73 50 . 147 15 2 Largest 2 | . 2 2 . . 2 2 2 2 . 2 2 1 Hottest 188 | . 80 40 . . 40 40 155 66 . 145 188 50 Shots Fired 655 | . 89 6 . . 56 13 133 77 . 256 23 2 Gun 546 | . 84 2 . . 47 13 110 69 . 199 20 2 Cannon 71 | . . . . . . . 14 . . 57 . . Launcher 25 | . 5 4 . . 9 . 7 . . . . . Special 13 | . . . . . . . 2 8 . . 3 . Kinetic 444 | . 66 2 . . 47 13 71 65 . 180 . . Thermal 171 | . 18 . . . . . 53 4 . 76 20 . Explosive 25 | . 5 4 . . 9 . 7 . . . . . Electromagnetic 2 | . . . . . . . . . . . . 2 Robot Hit Streak 29 | . 25 . . . 8 8 14 13 . 29 6 3 Robot Miss Streak 4 | . 2 . . . 4 . 3 2 . 2 3 . Penetration Max 1 | . . . . . . . 1 . . 1 . . Secondary Targets 10 | . 1 . . . . . 1 3 . 3 2 . Max Gunslinging Chain 1 | . 1 . . . . . 1 1 . 1 1 . Shots Hit Robots 507 | . 66 . . . 33 6 100 58 . 210 26 8 Core Hits 258 | . 41 9 . . 27 3 54 22 . 84 16 2 Critical Kills 10 | . . . . . . . 3 . . 7 . . Critical Parts Destroyed 7 | . . . . . . . 2 1 . 4 . . Critical Strikes 23 | . . . . . . . 7 2 . 11 1 2 Burn 3 | . . . . . . . 2 1 . . . . Meltdown 1 | . . . . . . . . . . 1 . . Destroy 16 | . . . . . . . 5 1 . 10 . . Sever 3 | . . . . . . . . . . . 1 2 Melee Attacks 58 | . . . . . . . . 11 . 16 13 18 Impact 22 | . . . . . . . . 11 . 11 . . Slashing 36 | . . . . . . . . . . 5 13 18 Piercing . | . . . . . . . . . . . . . Sneak Attacks 4 | . . . . . . . . 1 . . 3 . Combat Hostiles 1 | . . . . . . . . 1 . . . . Follow-up Attacks . | . . . . . . . . . . . . . Damage Inflicted 11977 | . 1124 243 . 12 875 66 2741 920 . 4771 999 226 Guns 7434 | . 544 . . . 239 66 1806 814 . 3545 399 21 Cannons 1458 | . . . . . . . 375 . . 1083 . . Explosions 1897 | . 531 238 . . 632 . 393 . . 103 . . Melee 820 | . . . . . . . . 106 . 40 469 205 Ramming 368 | . 49 5 . 12 4 . 167 . . . 131 . Kinetic 5834 | . 399 . . . 239 66 1159 729 . 3242 . . Thermal 3037 | . 145 . . . . . 1022 85 . 1386 399 . Explosive 1897 | . 531 238 . . 632 . 393 . . 103 . . Electromagnetic 21 | . . . . . . . . . . . . 21 Impact 106 | . . . . . . . . 106 . . . . Slashing 714 | . . . . . . . . . . 40 469 205 Piercing . | . . . . . . . . . . . . . Highest Corruption 10 | . . . . . 8 8 7 7 7 10 . 1 Average Corruption 7 | . . . . . 7 8 5 7 7 7 . 1 Corruption Purged . | . . . . . . . . . . . . . Corruption Blocked . | . . . . . . . . . . . . . Effects 167 | . . . . . 13 28 23 26 5 71 . 1 Message Errors 34 | . . . . . 5 6 3 6 . 14 . . Matter Fused 29 | . . . . . 2 7 3 7 1 9 . . Heat Flow Errors 19 | . . . . . 1 4 3 3 1 7 . . Energy Discharges 25 | . . . . . 3 3 5 4 1 9 . . Parts Rejected 4 | . . . . . . 2 1 . . 1 . . Parts Fused 1 | . . . . . . . . . . 1 . . Data Loss (minor) 21 | . . . . . 1 1 3 4 1 10 . 1 Data Loss (major) 15 | . . . . . 1 3 2 . . 9 . . Misfires 7 | . . . . . . 1 1 . . 5 . . Alerts 5 | . . . . . . 1 1 . 1 2 . . Weapon Failures 7 | . . . . . . . 1 2 . 4 . . Overload Shots 1 | . . . . . . . . . . 1 . . Overflow Damage 177 | . 2 . . . 23 . 69 . . . 57 26 Projectiles 10 | . . . . . . . 10 . . . . . Explosions 84 | . 2 . . . 23 . 59 . . . . . Melee 83 | . . . . . . . . . . . 57 26 Knockbacks 3 | . . . . . . . 1 . . . 2 . Impact 3 | . . . . . . . 1 . . . 2 . Kinetic . | . . . . . . . . . . . . . Secondary . | . . . . . . . . . . . . . Self-Inflicted Damage 149 | . 20 9 . . 120 . . . . . . . Shots 7 | . 1 2 . . 4 . . . . . . . Rammed 45 | . 10 2 . 2 2 . 19 . . . 10 . Targets Rammed 55 | . 14 2 . 2 2 . 23 . . . 12 . Kicked 4 | . 4 . . . . . . . . . . . Crushed 6 | . . . . . . . 4 . . . 2 . Highest Temperature 326 | . 54 . . . 127 250 277 229 165 326 225 . Average Temperature 78 | . 19 . . . 26 94 83 98 84 94 65 . Received Heat Transfer 2148 | . 150 . . . 144 . 426 114 . 846 441 27 Effects 3 | . . . . . . . . . . 2 1 . Shutdowns 1 | . . . . . . . . . . 1 . . Interference 2 | . . . . . . . . . . 1 1 . Siege Activations . | . . . . . . . . . . . . . Robots Corrupted . | . . . . . . . . . . . . . Combat Hostiles . | . . . . . . . . . . . . . Parts Fried . | . . . . . . . . . . . . . Impact Corruptions . | . . . . . . . . . . . . . Robots Melted 1 | . . . . . . . . . . 1 . . Combat Hostiles 1 | . . . . . . . . . . 1 . . Parts Melted 11 | . . . . . . . 2 2 . 7 . . Heat Transferred 5130 | . 325 . . . . . 1820 222 . 2245 518 . Parts Sabotaged . | . . . . . . . . . . . . . Parts Stolen . | . . . . . . . . . . . . . Parts Stripped . | . . . . . . . . . . . . . Power Chain Reactions . | . . . . . . . . . . . . . Alert | -11 -10 -10 -10 -9 -8 -8 -7 -7 -7 -7 -6 -6 ------- Run | Yrd Mat Min Exi Min Mat Gar Fac Gar Fac Gar Fac Gar Peak Influence 1701 | . 195 79 . 74 226 536 1006 947 520 1701 1205 851 Initial 892 | . . 67 . . 28 111 281 704 497 336 892 763 Average 485 | . 123 21 . 6 128 281 618 866 496 1009 1086 795 Maximum Alert Level 5 | . . . . . 1 2 3 3 2 5 4 3 Low Security (%) 38 | . 100 100 . 100 75 2 . . . . . . Level 1 9 | . . . . . 24 76 9 . . 3 . . Level 2 17 | . . . . . . 21 56 . 100 20 . . Level 3 23 | . . . . . . . 34 100 . 31 49 100 Level 4 8 | . . . . . . . . . . 31 50 . Level 5 2 | . . . . . . . . . . 12 . . High Security . | . . . . . . . . . . . . . Max Security . | . . . . . . . . . . . . . Squads Dispatched 21 | . 3 . . . . . 15 . . . 3 . Investigation 1 | . . . . . . . 1 . . . . . Extermination 4 | . . . . . . . 4 . . . . . Reinforcement 8 | . 3 . . . . . 4 . . . 1 . Assault 6 | . . . . . . . 4 . . . 2 . Garrison 2 | . . . . . . . 2 . . . . . Intercept . | . . . . . . . . . . . . . Searches Triggered . | . . . . . . . . . . . . . Construction Impeded 1 | . . . . . . . 1 . . . . . Haulers Reinforced 1 | . . . . . . . 1 . . . . . Active Scanning Responses . | . . . . . . . . . . . . . Cargo Convoy Interrupts . | . . . . . . . . . . . . . Stealth | -11 -10 -10 -10 -9 -8 -8 -7 -7 -7 -7 -6 -6 --------- Run | Yrd Mat Min Exi Min Mat Gar Fac Gar Fac Gar Fac Gar Distress Signals 4 | . 1 . . . . . 3 . . . . . Communications Jammed . | . . . . . . . . . . . . . Distress Signals . | . . . . . . . . . . . . . Times Spotted 232 | . 29 6 . 3 10 . 63 14 . 53 44 10 Peak Tracking Total 19 | . 6 3 . 3 4 . 9 6 . 5 19 4 Tactical Retreats 20 | . 1 . . . . . 2 . . 9 6 2 Traps | -11 -10 -10 -10 -9 -8 -8 -7 -7 -7 -7 -6 -6 ------- Run | Yrd Mat Min Exi Min Mat Gar Fac Gar Fac Gar Fac Gar Traps Triggered 16 | . 2 . . . 1 4 2 4 . 3 . . Indirectly . | . . . . . . . . . . . . . Trap Hack Attempts . | . . . . . . . . . . . . . Triggered . | . . . . . . . . . . . . . Disarmed . | . . . . . . . . . . . . . Reprogrammed . | . . . . . . . . . . . . . Reused . | . . . . . . . . . . . . . Traps Extracted . | . . . . . . . . . . . . . Installed . | . . . . . . . . . . . . . Triggered 1 | . . . . . . . . . . . . 1 Machines | -11 -10 -10 -10 -9 -8 -8 -7 -7 -7 -7 -6 -6 ---------- Run | Yrd Mat Min Exi Min Mat Gar Fac Gar Fac Gar Fac Gar Machines Disabled 16 | . 2 . . . 2 4 1 1 . 6 . . Max in Single Turn 2 | . 2 . . . 1 2 . 1 . 2 . . Garrison Access 1 | . . . . . . . 1 . . . . . Garrison Relay 6 | . . . . . . 4 . 1 . 1 . . Phase Generator 1 | . . . . . . . . . . 1 . . Machines Repaired . | . . . . . . . . . . . . . Machines Dismantled . | . . . . . . . . . . . . . Machines Sabotaged . | . . . . . . . . . . . . . Overloaded Fab Kills . | . . . . . . . . . . . . . Hacking | -11 -10 -10 -10 -9 -8 -8 -7 -7 -7 -7 -6 -6 --------- Run | Yrd Mat Min Exi Min Mat Gar Fac Gar Fac Gar Fac Gar Machines Accessed 18 | . . . 1 . 4 3 3 2 1 2 1 1 Terminals 12 | . . . . . 2 3 2 2 . 2 . 1 Fabricators . | . . . . . . . . . . . . . Repair Stations . | . . . . . . . . . . . . . Recycling Units 1 | . . . . . 1 . . . . . . . Scanalyzers . | . . . . . . . . . . . . . Garrison Access 4 | . . . . . 1 . 1 . 1 . 1 . Total Hacks 32 | . . . 1 . 10 4 3 4 1 6 1 2 Successful 15 | . . . 1 . 3 2 1 2 1 2 1 2 Failed 17 | . . . . . 7 2 2 2 . 4 . . Catastrophic 5 | . . . . . 1 1 2 1 . . . . Database Lockouts . | . . . . . . . . . . . . . Manual 14 | . . . 1 . 7 1 . 1 . 3 . 1 Terminals 26 | . . . . . 8 4 2 4 . 6 . 2 Fabricators . | . . . . . . . . . . . . . Repair Stations . | . . . . . . . . . . . . . Recycling Units 1 | . . . . . 1 . . . . . . . Scanalyzers . | . . . . . . . . . . . . . Garrison Access 4 | . . . . . 1 . 1 . 1 . 1 . Terminal Hacks 8 | . . . 1 . . 2 . 2 . 2 . 1 Open Door 2 | . . . . . . 1 . 1 . . . . Emergency Access Points 3 | . . . . . . . . 1 . 1 . 1 Patrol Navigation 1 | . . . . . . 1 . . . . . . Security Stations 1 | . . . . . . . . . . 1 . . Derelict Proto ID Bank 1 | . . . 1 . . . . . . . . . Fabricator Hacks . | . . . . . . . . . . . . . Repair Station Hacks . | . . . . . . . . . . . . . Recycling Unit Hacks . | . . . . . . . . . . . . . Scanalyzer . | . . . . . . . . . . . . . Garrison Access Hacks 4 | . . . . . 1 . 1 . 1 . 1 . Unlock Access 4 | . . . . . 1 . 1 . 1 . 1 . Unauthorized Hacks 3 | . . . . . 2 . . . . . . 1 Terminals 3 | . . . . . 2 . . . . . . 1 Botnet 2 | . . . . . 1 . . . . . . 1 Operators 1 | . . . . . 1 . . . . . . . Fabricators . | . . . . . . . . . . . . . Repair Stations . | . . . . . . . . . . . . . Recycling Units . | . . . . . . . . . . . . . Scanalyzers . | . . . . . . . . . . . . . Garrison Access . | . . . . . . . . . . . . . Data Cores Recovered . | . . . . . . . . . . . . . Used . | . . . . . . . . . . . . . Hacking Detections 9 | . . . . . 2 2 2 1 . 1 . 1 Full Trace Events . | . . . . . . . . . . . . . Feedback Events . | . . . . . . . . . . . . . Feedback Blocked . | . . . . . . . . . . . . . Robot Schematics Acquired . | . . . . . . . . . . . . . Robots Built . | . . . . . . . . . . . . . Authchips . | . . . . . . . . . . . . . Time . | . . . . . . . . . . . . . Total Robot Build Rating . | . . . . . . . . . . . . . Part Schematics Acquired . | . . . . . . . . . . . . . Parts Built . | . . . . . . . . . . . . . Authchips . | . . . . . . . . . . . . . Time . | . . . . . . . . . . . . . Total Part Build Rating . | . . . . . . . . . . . . . Parts Repaired . | . . . . . . . . . . . . . Time . | . . . . . . . . . . . . . Parts Recycled . | . . . . . . . . . . . . . Recycled Matter . | . . . . . . . . . . . . . Retrieved Matter . | . . . . . . . . . . . . . Retrieved Components . | . . . . . . . . . . . . . Parts Scanalyzed . | . . . . . . . . . . . . . Part Schematics Acquired . | . . . . . . . . . . . . . Parts Damaged . | . . . . . . . . . . . . . Bothacking | -11 -10 -10 -10 -9 -8 -8 -7 -7 -7 -7 -6 -6 ------------ Run | Yrd Mat Min Exi Min Mat Gar Fac Gar Fac Gar Fac Gar Used RIF Installer 4 | . . . . . . 1 . 1 . 2 . . Command Fork 1 | . . . . . . . . . . 1 . . Watcher Feeds 1 | . . . . . . . . 1 . . . . Autoassimilate 1 | . . . . . . . . . . 1 . . Robots Hacked 7 | . . . . . . . 1 5 . . 1 . Non-combat . | . . . . . . . . . . . . . Combat 7 | . . . . . . . 1 5 . . 1 . Robot Hacks Applied 8 | . . . . . . . 1 5 . . 2 . find_garrison 1 | . . . . . . . . . . . 1 . overwrite_iff 2 | . . . . . . . . 2 . . . . formatsys_high 5 | . . . . . . . 1 3 . . 1 . Relay Couplers Released 25 | . . . . . . 17 . 3 . 5 . . Machine Destruction 25 | . . . . . . 17 . 3 . 5 . . Attached 8 | . . . . . . 1 2 3 . . 2 . Fabnet Peak Effective % . | . . . . . . . . . . . . . Robots Rewired 12 | . . . . . . 10 . 2 . . . . Allies Hacked . | . . . . . . . . . . . . . Hacks Repelled . | . . . . . . . . . . . . . Allies | -11 -10 -10 -10 -9 -8 -8 -7 -7 -7 -7 -6 -6 -------- Run | Yrd Mat Min Exi Min Mat Gar Fac Gar Fac Gar Fac Gar Total Allies 22 | . . . . 1 . 10 1 7 . 2 1 . Largest Group 10 | . . . . 1 1 10 10 3 2 2 1 . Highest-Rated Group 214 | . . . . 31 31 214 214 96 56 124 32 . Highest-Rated Ally 90 | . . . . 31 31 31 90 32 31 62 32 . Total Orders . | . . . . . . . . . . . . . Ally Attacks 194 | . . . . 13 . . 140 11 8 19 3 . Total Damage 4384 | . . . . 190 . . 2801 290 137 823 143 . Kills 42 | . . . . 3 . . 30 2 1 6 . . Allies Corrupted 2 | . . . . . . . 1 . 1 . . . Allies Melted . | . . . . . . . . . . . . . Intel | -11 -10 -10 -10 -9 -8 -8 -7 -7 -7 -7 -6 -6 ------- Run | Yrd Mat Min Exi Min Mat Gar Fac Gar Fac Gar Fac Gar Robot Analysis Total . | . . . . . . . . . . . . . Derelict Logs Recovered 3 | . . 2 . 1 . . . . . . . . Drone Launches . | . . . . . . . . . . . . . Drone Recoveries . | . . . . . . . . . . . . . Exploration | -11 -10 -10 -10 -9 -8 -8 -7 -7 -7 -7 -6 -6 ------------- Run | Yrd Mat Min Exi Min Mat Gar Fac Gar Fac Gar Fac Gar Turns Passed 11762 | . 1197 2083 632 531 646 759 2143 833 193 2128 442 175 Spaces Moved 5604 | 1 649 744 263 220 275 596 1177 413 118 835 259 54 Core 148 | . . . . . 2 . . 1 . . 91 54 Treads 4039 | . 557 744 263 220 136 . 884 114 118 835 168 . Legs 93 | 1 92 . . . . . . . . . . . Wheels 1324 | . . . . . 137 596 293 298 . . . . Hover . | . . . . . . . . . . . . . Flight . | . . . . . . . . . . . . . Fastest Speed 50 | 120 120 160 240 240 101 101 110 115 160 160 50 50 Average Speed 164 | 120 154 208 240 240 140 107 153 134 160 187 125 50 Slowest Speed 900 | 120 160 240 240 240 900 110 240 800 160 320 320 50 Overloaded Moves . | . . . . . . . . . . . . . Propulsion Burnouts . | . . . . . . . . . . . . . Robots Hopped . | . . . . . . . . . . . . . Cave-ins Triggered . | . . . . . . . . . . . . . Exploration Rate (%) 47 | 2 90 99 59 43 24 89 32 54 4 91 13 11 Regions Visited 12 Branch Regions 3 Pre-discovered Areas . | . . . . . . . . . . . . . Known Exits Taken 5 | . . . 1 . 1 . 1 . 1 . 1 . Unknown Exits Taken 4 | 1 1 1 . 1 . . . . . . . . Scrap Searched 4 | . . 3 . 1 . . . . . . . . Spaces Dug 69 | . 11 16 . . 20 . 9 4 . 4 1 4 Terrain Destroyed 210 | . 18 19 . . 49 . 27 4 . 85 4 4 Melee 13 | . . . . . . . . 4 . 4 1 4 Projectile 10 | . . . . . . . 1 . . 6 3 . AOE 187 | . 18 19 . . 49 . 26 . . 75 . . Terrain Rammed . | . . . . . . . . . . . . . Walls Destroyed . | . . . . . . . . . . . . . Machines Disabled . | . . . . . . . . . . . . . Actions | -11 -10 -10 -10 -9 -8 -8 -7 -7 -7 -7 -6 -6 --------- Run | Yrd Mat Min Exi Min Mat Gar Fac Gar Fac Gar Fac Gar Total 7410 | . 762 1268 265 221 480 707 1360 600 123 1130 323 171 Wait 898 | . 20 503 . . 145 2 26 42 . 59 8 93 Move 5596 | . 648 743 262 219 275 595 1177 412 118 834 259 54 Hop . | . . . . . . . . . . . . . Pick Up 69 | . 8 6 3 . 4 4 10 8 2 21 3 . Fast Attach 59 | . 8 . . . 7 4 10 12 . 15 2 1 Attach 28 | . 1 . . . 3 . 7 3 . 6 7 1 Detach 4 | . 1 . . . . . 1 . . 1 . 1 Swap 63 | . 5 6 . . 9 2 13 16 1 9 2 . Drop 84 | . 10 3 . . 2 9 20 13 2 22 2 1 Fire 381 | . 47 5 . . 33 9 73 50 . 147 15 2 Melee 58 | . . . . . . . . 11 . 16 13 18 Ram 1 | . . . . . 1 . . . . . . . Kick 4 | . 4 . . . . . . . . . . . Crush 50 | . 10 2 . 2 1 . 23 . . . 12 . Escape Stasis 16 | . . . . . . . . 16 . . . . Rewire 99 | . . . . . . 82 . 17 . . . . Trap . | . . . . . . . . . . . . . Miscellaneous . | . . . . . . . . . . . . . Route ------- -11/Scrapyard -10/Materials (discovered 5 exits: [*Mat x3] / [*Min] / [*Sub]) -10/Mines (discovered 4 exits: [*Mat x2] / *Exi / [*Sub]) -10/Exiles (discovered 2 exits: *Min x2) -9/Mines -8/Materials (discovered 3 exits: *Fac x2 / Gar) -8/Garrison (discovered 3 exits: *Fac x3) -7/Factory (discovered 3 exits: *Fac x2 / Gar) -7/Garrison -7/Factory -7/Garrison (discovered 3 exits: *Fac x3) -6/Factory (discovered 2 exits: [*Low] / Gar) -6/Garrison History --------- Turn | Location | Event 1 | -11/Scrapyard | Discovered new exit (range 0) 1 | -11/Scrapyard | Entered Materials 85 | -10/Materials | Discovered new exit (range 11) 317 | -10/Materials | Build established: Mutant 387 | -10/Materials | Discovered new exit (range 4) 483 | -10/Materials | Discovered new exit (range 12) 665 | -10/Materials | Discovered new exit (range 14) 1037 | -10/Materials | Discovered new exit (range 15) 1198 | -10/Materials | Entered Mines 1209 | -10/Mines | Met a Derelict bent on vengeance 1238 | -10/Mines | Learned location of 1 exit from Materials 1430 | -10/Mines | Assembled infested the area 2037 | -10/Mines | Received a Rocket Launcher from a helpful Derelict 2139 | -10/Mines | Discovered new exit (range 6) 2280 | -10/Mines | Discovered new exit (range 16) 2336 | -10/Mines | Deemed a non-threat by the Exiles lab entrance 2338 | -10/Mines | Discovered new exit (range 5) 2590 | -10/Mines | Discovered new exit (range 11) 2661 | -10/Mines | Found a damaged Exp. Sensor Array with a note attached 2666 | -10/Mines | Found Prototype Device 3281 | -10/Mines | Entered Exiles 3282 | -10/Exiles | Identified exit to Mines 3339 | -10/Exiles | Met 8R-AWN 3380 | -10/Exiles | Met EX-HEX 3459 | -10/Exiles | Met EX-BIN 3584 | -10/Exiles | Aligned with FarCom system 3586 | -10/Exiles | Given EX-Vault access code 3641 | -10/Exiles | Opened EX-Vault 3663 | -10/Exiles | Found XL Autogun Array 3674 | -10/Exiles | Found Trap Reconfigurator 3677 | -10/Exiles | Found Chronowheel 3728 | -10/Exiles | Warned to stay clear of 0b10 Research branches 3808 | -10/Exiles | Met EX-DEC 3913 | -10/Exiles | Stole three prototypes: Trap Reconfigurator, Chronowheel, XL Autogun Array 3913 | -10/Exiles | Entered Mines 4161 | -9/Mines | Learned Materials non-interactive machine intel 4242 | -9/Mines | Discovered new exit (range 5) 4245 | -9/Mines | Received a Mining Laser from a helpful Derelict 4444 | -9/Mines | Entered Materials 4444 | -8/Materials | Accompanied by 1 ally 4444 | -8/Materials | Evolved 4 slots: Propulsion x2, Utility x2 4445 | -8/Materials | Identified exit to Factory 4446 | -8/Materials | Loaded intel: 35 non-interactive machine locations 5070 | -8/Materials | Discovered exit to Factory (range 16) 5090 | -8/Materials | Identified exit to Garrison 5090 | -8/Materials | Entered Garrison 5090 | -8/Garrison | Discovered recently destroyed garrison 5236 | -8/Garrison | Discovered exit to Factory (range 14) 5296 | -8/Garrison | Build established: Scavenger-Mutant 5354 | -8/Garrison | Installed Relay Interface Framework 5562 | -8/Garrison | Discovered exit to Factory (range 12) 5680 | -8/Garrison | Garrison Relay disabled 5680 | -8/Garrison | Garrison Relay disabled 5682 | -8/Garrison | Garrison Relay disabled 5686 | -8/Garrison | Garrison Relay disabled 5690 | -8/Garrison | Build established: Commander-Mutant 5821 | -8/Garrison | Discovered exit to Factory (range 14) 5849 | -8/Garrison | Entered Factory 5849 | -7/Factory | Accompanied by 10 allies 5849 | -7/Factory | Evolved 2 slots: Propulsion x1, Utility x1 5851 | -7/Factory | FarCom data flow suspended 5856 | -7/Factory | Identified Exp. Sensor Array 6649 | -7/Factory | First assault squad dispatched 6744 | -7/Factory | Lost 7 allies 7008 | -7/Factory | Build established: Scavenger-Mutant 7147 | -7/Factory | Garrison activated, responded to threat 7595 | -7/Factory | Discovered new exit (range 4) 7600 | -7/Factory | Identified exit to Factory 7935 | -7/Factory | Garrison activated, responded to threat 7969 | -7/Factory | Discovered exit to Factory (range 5) 7987 | -7/Factory | Identified exit to Garrison 7992 | -7/Factory | Entered Garrison 8050 | -7/Garrison | Expanded RIF knowledge: Watcher Feeds 8080 | -7/Garrison | Triggered checkpoint 8151 | -7/Garrison | Garrison Relay disabled 8296 | -7/Garrison | Triggered checkpoint 8394 | -7/Garrison | Discovered new exit (range 12) 8406 | -7/Garrison | Identified exit to Factory 8454 | -7/Garrison | Triggered checkpoint 8462 | -7/Garrison | Build established: Bothacker-Mutant 8524 | -7/Garrison | Core integrity fell below 50% 8825 | -7/Garrison | Entered Factory 8825 | -7/Factory | Accompanied by 2 allies 8841 | -7/Factory | Build established: Scavenger-Mutant 9018 | -7/Factory | Identified exit to Garrison 9018 | -7/Factory | Entered Garrison 9373 | -7/Garrison | Lost 3 parts (1n1u1w) 9505 | -7/Garrison | Phase Generator disabled 9736 | -7/Garrison | Triggered checkpoint 9736 | -7/Garrison | Triggered checkpoint 9783 | -7/Garrison | Triggered checkpoint 9911 | -7/Garrison | Found embedded Infiltrators 9936 | -7/Garrison | Triggered checkpoint 10000 | -7/Garrison | Triggered checkpoint 10143 | -7/Garrison | Discovered exit to Factory (range 14) 10225 | -7/Garrison | Spotted B-75 Beast 10300 | -7/Garrison | Spotted B-75 Beast 10410 | -7/Garrison | Discovered exit to Factory (range 12) 10457 | -7/Garrison | Expanded RIF knowledge: Command Fork 10468 | -7/Garrison | System corruption reached 10% 10494 | -7/Garrison | Garrison Relay disabled 10516 | -7/Garrison | Triggered checkpoint 10543 | -7/Garrison | Learned Factory security intel 10670 | -7/Garrison | Triggered checkpoint 10790 | -7/Garrison | Build established: Bothacker-Mutant 10796 | -7/Garrison | Triggered checkpoint 10870 | -7/Garrison | Discovered exit to Factory (range 10) 11034 | -7/Garrison | Expanded RIF knowledge: Autoassimilate 11146 | -7/Garrison | Entered Factory 11146 | -6/Factory | Evolved 2 slots: Propulsion x1, Utility x1 11265 | -6/Factory | Destroyed 9 combat bots 11403 | -6/Factory | Discovered new exit (range 16) 11496 | -6/Factory | First assault squad dispatched 11535 | -6/Factory | Released all parts (9) 11560 | -6/Factory | Lost 3 parts (3n) 11578 | -6/Factory | Core integrity fell below 50% 11588 | -6/Factory | Identified exit to Garrison 11588 | -6/Factory | Entered Garrison 11637 | -6/Garrison | Core integrity fell below 20% 11752 | -6/Garrison | Triggered checkpoint 11763 | -6/Garrison | Destroyed by S-27 Virus with Autogun Last Messages --------------- 11588_ EXIT=UNLOCKED: GARRISON LOCATION=GARRISON GOAL=ESCAPE 11621_ P-60 Hacker Shock Rifle severed. 11626_ Destroyed Gravmag System. 11629_ P-60 Hacker Shock Rifle severed. 11636_ Acquired Shock Rifle. 11680_ System corrupted: Component data lost. 11691_ Dropped Shock Rifle. 11705_ Connecting with Garrison Terminal... >>Access(Emergency) Found 58 emergency access points. Map updated. >>Trojan(Botnet) Trojan loaded successfully. Testing... Terminal linked with 0 systems. Awaiting botnet instructions. 11753_ S-27 Virus destroyed. 11760_ Destroyed VTOL Module. Map ----- +----------------------------------------------------+ | ?????????????????????????????????????????????????? | | ?????????????????????????????????????????????????? | | ?????????????????????????????????????????????????? | | ????????????????????????????????+????????????????? | | ???????????????+??????????????????????+??????????? | | ??????????+?????????????????????????????????+????? | | ????????????????????????? ????????????????????? | | ????????????????????????? #????????+??????????? | | ????????????????????????# ##??????????????????? | | ???????????????????????? ?????+????????????? | | ???????????????????????? ???????????????????? | | ?????????????????+?? ? ???????????????????? | | ???????????????????? ? ???????????????????? | | ???????????????????? ?# #???????????????????? | | ??????????#+???????? ## #???????????????????? | | ?????????# ???????? ???????????????+???? | | ?????????# ???????? ????????????????????? | | ?????????# ?????+?? ????????????????????? | | ?????????# ????????# #? ???++????+???????????? | | ?????????# #???????# #?*= ?????????????????????? | | ?????????# +???????# #?#%#?????????????????????? | | ?????????# #???????+ #?#=#?????????????+???????? | | ?????????# #???????# #?# #?????????????????????? | | ???+?????# #???????# #?# #?????????????????????? | | ####"""### #####+### ###s#?????????????????????? | | s @ #?????????????+???????? | | #####?????????????+???????? | | ????"""### ##T#########?????????????????????????? | | ?????????# ####?????????????????????????????????? | | ?????????# #????????????????????????????????????? | | ?????????# #????????????????????????????????????? | | ?????????# #????????????????????????????????????? | | ?????????# #????????????????????????????????????? | | ?????????# #????????????????????????????????????? | | ?????????# #????????????????????????????????????? | | ?????????# #????????????????????????????????????? | | ?###?????# #??????????????????????????+?????????? | | ##"#######[ #????????????????????????????????????? | | # [ #????????????????????????????????????? | | " #????????????????????????????????????? | | # #######"#????????????????????????????????????? | | # #?????###????????????????????????????????????? | | ##"##????????????????????????????????????????????? | | ?###?????????????????????????????????????????????? | | ?????????????????????????????????????????????????? | | ?????????????????????????????????????????????????? | | ?????????????????????????????????????????????????? | | ?????????????????????????????????????????????????? | | ?????????????????????????????????????????????????? | | ?????????????????????????????????????????????????? | +----------------------------------------------------+ Best States ------------- Heat Dissipation 67 Coolant Potential 65 Energy Generation 19 Energy Capacity 315 Matter Stores 300 Matter Capacity 300 Sight Range 16 Robot Scan Range 20 Terrain Scan Range 16 Terrain Scan Density 10 Armor Coverage 450 Phase Shifting 15 Evasion (%) 55 Targeting Accuracy 8 Target Analysis 5 Core Analysis 6 Recoil Reduction 6 Relay Coupler Types 2 Relay Coupler Value 42 Item Schematics ----------------- None Robot Schematics ------------------ None Fabricated ------------ Nothing Alien Tech Used ----------------- None Achievements -------------- None Challenges ------------ None Game ------ Seed TargetGunCalibrator Manual? 0 Play Time 01:22:03 Cumulative 477.7 hours Start 2024.04.10 @ 11:41:13 End 2024.04.11 @ 11:46:07 Sessions 5 Manual Loads 0 Difficulty Rogue Special Mode None Game No. 525 Rogue 525 Adventurer 0 Explorer 0 Win Type - Total 14 Types 9/0/4/1/0/0/0/0/0 Lore% 82 Gallery% 90 Achievement% 82 Wizard Run 0 Options --------- Layout 0 ASCII 0 Keyboard 0 Movement Numpad Keybinds 0 Fullscreen 1 Font 18/SmallcapsGlow Map View 76x50 Zoom Use 0% Tactical HUD 1 Map Filters NONE Filters NONE Steam 1 RUN: cad5e2ef-7a3f-4101-89b2-6662d1f11011